lending/lending_fUSD_20250409
["ID","MTS","AMOUNT","RATE_DAILY","PERIOD"]
[357571086,1744181493009,-1000.0,0.0006,120]
[357571087,1744181493053,-151.0,0.0006,120]
[357571088,1744181493098,-150.0,0.00060054,120]
[357571089,1744181493149,-300.0,0.0006007,60]
[357571090,1744181493193,-400.0,0.0006007,60]
[357571091,1744181493239,-210.0,0.0006009,30]
[357571092,1744181493282,-209.0,0.0006009,30]
[357571093,1744181493325,-204.0,0.0006009,30]
[357571094,1744181493368,-1206.53,0.00060273,120]
[357571095,1744181493411,-1206.53,0.00060273,120]
[357571096,1744181493454,-1206.53,0.00060273,120]
[357571097,1744181493497,-1206.53,0.00060273,120]
[357571098,1744181493541,-1206.53,0.00060273,120]
[357571099,1744181493584,-1206.53,0.00060273,120]
[357571100,1744181493625,-1206.53,0.00060273,120]
[357571101,1744181493668,-1206.53,0.00060273,120]
[357571102,1744181493712,-1206.53,0.00060273,120]
[357571103,1744181493755,-1206.53,0.00060273,120]
[357571104,1744181493798,-1206.53,0.00060273,120]
[357571105,1744181493841,-1206.53,0.00060273,120]
[357571106,1744181493885,-1206.53,0.00060273,120]
[357571107,1744181493927,-1206.53,0.00060273,120]
[357571108,1744181493971,-1206.53,0.00060273,120]
[357571109,1744181494015,-1206.53,0.00060273,120]
[357571110,1744181494057,-1206.53,0.00060273,120]
[357571111,1744181494101,-1206.53,0.00060273,120]
[357571112,1744181494151,-1206.53,0.00060273,120]
[357571113,1744181494197,-1206.53,0.00060273,120]
[357571114,1744181494242,-1206.53,0.00060273,120]
[357571115,1744181494287,-1206.53,0.00060273,120]
[357571116,1744181494331,-1206.53,0.00060273,120]
[357571117,1744181494377,-1206.64205197,0.00060273,120]
[357571118,1744181494421,-999.0,0.00060273,120]
[357571119,1744181494758,1000.0,0.00056,120]
[357571120,1744181495516,150.0,0.00058,120]
[357571121,1744181498349,151.0,0.00058,120]
[357571122,1744181498652,151.0,0.00059,120]
[357571123,1744181499050,151.0,0.0006,120]
[357571124,1744181546511,-302.0,0.00043865,30]
[357571125,1744181546552,-303.46035058,0.00043865,30]
[357571126,1744181546624,-154.46,0.0005137,120]
[357571127,1744181546672,-151.0,0.00058,120]
[357571128,1744181546712,-151.0,0.00059,120]
[357571129,1744181546752,-151.0,0.0006,120]
[357571130,1744181546792,-554.02454707,0.00060547,56]
[357571131,1744181546832,-180.823,0.00060625,120]
[357571132,1744181546871,-180.824,0.00060625,120]
[357571133,1744181546911,-151.0,0.00060712,120]
[357571134,1744181546950,-489.79522733,0.00061,120]
[357571135,1744181546993,-2000000.0,0.00061,120]
[357571136,1744181547037,-997230.61287502,0.00061,120]
[357571137,1744181549636,-1019.94,0.0006,120]
[357571138,1744181549682,-2769.38712498,0.00061,120]
[357571139,1744181549719,-500.0,0.00061,120]
[357571140,1744181549766,-151.0,0.00061,120]
[357571141,1744181549805,-151.0,0.00061,120]
[357571142,1744181549844,-151.0,0.00061,120]
[357571143,1744181549883,-500.0,0.00061095,120]
[357571144,1744181549926,-500.0,0.00061095,120]
[357571145,1744181549968,-500.0,0.00061095,120]
[357571146,1744181550008,-500.0,0.00061095,120]
[357571147,1744181550047,-500.0,0.00061095,120]
[357571148,1744181550088,-500.0,0.00061095,120]
[357571149,1744181550131,-500.0,0.00061095,120]
[357571150,1744181550171,-500.0,0.00061095,120]
[357571151,1744181550211,-500.0,0.00061095,120]
[357571152,1744181550252,-500.0,0.00061095,120]
[357571153,1744181550292,-500.0,0.00061095,120]
[357571154,1744181550334,-500.0,0.00061095,120]
[357571155,1744181550615,-500.0,0.00061095,120]
[357571156,1744181550658,-500.0,0.00061095,120]
[357571157,1744181550697,-500.0,0.00061095,120]
[357571158,1744181550739,-500.0,0.00061095,120]
[357571159,1744181550779,-500.0,0.00061095,120]
[357571160,1744181550820,-500.0,0.00061095,120]
[357571161,1744181550861,-2000.0,0.00061095,120]
[357571162,1744181550900,-313.15,0.00061629,120]
[357571163,1744181550942,-154.46,0.00061644,120]
[357571164,1744181550989,-690.0,0.00062,120]
[357571165,1744181551036,-2000000.0,0.00062,120]
[357571166,1744181551082,-983100.06287502,0.00062,120]
[357571167,1744181554182,-500.0,0.00049999,120]
[357571168,1744181554228,-500.0,0.00049999,120]
[357571169,1744181554276,-500.0,0.00049999,120]
[357571170,1744181554322,-500.0,0.00049999,120]
[357571171,1744181554371,-500.0,0.00049999,120]
[357571172,1744181554418,-421.14222102,0.00049999,120]
[357571173,1744181554471,-156.48412056,0.00061626,30]
[357571174,1744181554524,-16899.93712498,0.00062,120]
[357571175,1744181554569,-500.0,0.00062,120]
[357571176,1744181554619,-896.55,0.00062,60]
[357571177,1744181554667,-151.0,0.00062,120]
[357571178,1744181554716,-151.0,0.00062,120]
[357571179,1744181554764,-150.0,0.0006207,120]
[357571180,1744181554812,-163.49,0.00062541,120]
[357571181,1744181554856,-3427.053,0.00063,120]
[357571182,1744181554902,-2000000.0,0.00063,120]
[357571183,1744181554949,-974583.34353344,0.00063,120]
[357571184,1744181558895,-25416.65646656,0.00063,120]
[357571185,1744181558938,-500.0,0.00063,120]
[357571186,1744181558982,-150.0,0.00063,120]
[357571187,1744181559024,-150.0,0.00063,120]
[357571188,1744181559062,-150.0,0.00063,120]
[357571189,1744181559104,-151.0,0.00063,120]
[357571190,1744181559149,-151.0,0.00063,120]
[357571191,1744181559192,-999.0,0.00063013,120]
[357571192,1744181561386,999.0,0.00049315,120]
[357571193,1744181561635,999.0,0.00052054,120]
[357571194,1744181561869,999.0,0.00054794,120]
[357571195,1744181561913,151.0,0.00061,120]
[357571196,1744181562134,999.0,0.00057534,120]
[357571197,1744181562190,151.0,0.00062,120]
[357571198,1744181562371,999.0,0.00060273,120]
[357571199,1744181562495,163.520382,0.00063,120]
[357571200,1744181562615,999.0,0.00063013,120]
[357571201,1744181606685,-1075.37,0.00054794,120]
[357571202,1744181606710,-1075.37,0.00054794,120]
[357571203,1744181607019,-1075.37,0.00054794,120]
[357571204,1744181607044,-1075.37,0.00054794,120]
[357571205,1744181607070,-1075.37,0.00054794,120]
[357571206,1744181607094,-1075.37,0.00054794,120]
[357571207,1744181607119,-1075.37,0.00054794,120]
[357571208,1744181607146,-1075.37,0.00054794,120]
[357571209,1744181607171,-1075.37,0.00054794,120]
[357571210,1744181607195,-1075.37,0.00054794,120]
[357571211,1744181607219,-1075.37,0.00054794,120]
[357571212,1744181607246,-1075.37,0.00054794,120]
[357571213,1744181607270,-1075.37,0.00054794,120]
[357571214,1744181607294,-1075.37,0.00054794,120]
[357571215,1744181607324,-1075.37,0.00054794,120]
[357571216,1744181607352,-1075.37,0.00054794,120]
[357571217,1744181607377,-1075.37,0.00054794,120]
[357571218,1744181607402,-1075.37,0.00054794,120]
[357571219,1744181607427,-1075.37,0.00054794,120]
[357571220,1744181607452,-1075.37,0.00054794,120]
[357571221,1744181607478,-1075.37,0.00054794,120]
[357571222,1744181607503,-1075.37,0.00054794,120]
[357571223,1744181607528,-1075.37,0.00054794,120]
[357571224,1744181607553,-1075.53892938,0.00054794,120]
[357571225,1744181607578,-1190.60008541,0.00055,120]
[357571226,1744181607604,-1119.72,0.00062,120]
[357571227,1744181607628,-150.0,0.00063097,120]
[357571228,1744181607654,-150.0,0.00063163,120]
[357571229,1744181607678,-150.0,0.00063194,120]
[357571230,1744181607706,-150.0,0.00063292,120]
[357571231,1744181607732,-150.0,0.00063326,120]
[357571232,1744181607759,-150.0,0.00063389,120]
[357571233,1744181607784,-150.0,0.00063486,120]
[357571234,1744181607808,-150.0,0.00063488,120]
[357571235,1744181607834,-209.0728214,0.000635,120]
[357571236,1744181607858,-150.0,0.00063583,120]
[357571237,1744181607883,-150.0,0.00063651,120]
[357571238,1744181607907,-150.0,0.00063681,120]
[357571239,1744181607932,-1100.22587372,0.000637,120]
[357571240,1744181607957,-150.0,0.00063778,120]
[357571241,1744181607981,-150.0,0.00063778,120]
[357571242,1744181608006,-150.0,0.00063814,120]
[357571243,1744181608032,-150.0,0.00063875,120]
[357571244,1744181608057,-150.0,0.00063972,120]
[357571245,1744181608083,-150.0,0.00063977,120]
[357571246,1744181608108,-1034.0,0.00064,120]
[357571247,1744181608133,-500.0,0.00064,120]
[357571248,1744181608163,-400.0,0.00064,120]
[357571249,1744181608189,-43168.0,0.00064,120]
[357571250,1744181608215,-169.0662198,0.00064,30]
[357571251,1744181608244,-2000000.0,0.00064,120]
[357571252,1744181608272,-922750.26607029,0.00064,120]
[357571253,1744181612009,-230.84,0.000425,60]
[357571254,1744181612331,-230.84,0.000448,60]
[357571255,1744181612362,-230.84,0.000489,60]
[357571256,1744181612396,-230.84,0.000528,60]
[357571257,1744181612425,-230.84,0.000591,60]
[357571258,1744181612453,-77249.73392971,0.00064,120]
[357571259,1744181612478,-250.0,0.00064,120]
[357571260,1744181612503,-151.0,0.00064,120]
[357571261,1744181612527,-151.0,0.00064,120]
[357571262,1744181612554,-209.552774,0.00064,120]
[357571263,1744181612579,-151.0,0.00064,120]
[357571264,1744181612605,-150.0,0.00064069,120]
[357571265,1744181612629,-279.18996,0.000641,120]
[357571266,1744181612654,-150.0,0.0006414,120]
[357571267,1744181612678,-150.0,0.00064167,120]
[357571268,1744181612703,-150.0,0.00064264,120]
[357571269,1744181612728,-150.0,0.00064302,120]
[357571270,1744181612752,-150.0,0.00064361,120]
[357571271,1744181612778,-150.0,0.00064458,120]
[357571272,1744181612804,-150.0,0.00064465,120]
[357571273,1744181612827,-150.0,0.00064556,120]
[357571274,1744181612851,-150.0,0.00064556,120]
[357571275,1744181612874,-150.0,0.00064628,120]
[357571276,1744181612900,-150.0,0.00064653,120]
[357571277,1744181612924,-150.0,0.0006475,120]
[357571278,1744181612948,-150.0,0.00064791,120]
[357571279,1744181612971,-150.0,0.00064847,120]
[357571280,1744181612994,-329.37363955,0.000649,120]
[357571281,1744181613017,-250.0,0.000649,120]
[357571282,1744181613040,-150.0,0.00064944,120]
[357571283,1744181613064,-150.0,0.00064953,120]
[357571284,1744181613089,-700.0,0.00064959,43]
[357571285,1744181613114,-1000.0,0.00064999,120]
[357571286,1744181613139,-250.0,0.00065,120]
[357571287,1744181613166,-680.0,0.00065,120]
[357571288,1744181613193,-2000000.0,0.00065,120]
[357571289,1744181613222,-914644.94969674,0.00065,120]
[357571290,1744181617795,-499.943661,0.00064,120]
[357571291,1744181617823,-499.943661,0.00064,120]
[357571292,1744181617846,-151.0,0.00064,120]
[357571293,1744181617873,-85355.05030326,0.00065,120]
[357571294,1744181617898,-250.0,0.00065,120]
[357571295,1744181617923,-151.0,0.00065,120]
[357571296,1744181617947,-151.0,0.00065,120]
[357571297,1744181617972,-499.943661,0.00065,120]
[357571298,1744181617998,-499.943661,0.00065,120]
[357571299,1744181618022,-150.0,0.00065042,120]
[357571300,1744181618046,-150.0,0.00065116,120]
[357571301,1744181618070,-150.0,0.00065139,120]
[357571302,1744181618303,-150.0,0.00065236,120]
[357571303,1744181618328,-150.0,0.00065279,120]
[357571304,1744181618352,-150.0,0.00065333,120]
[357571305,1744181618375,-150.0,0.00065442,120]
[357571306,1744181618399,-150.0,0.00065605,120]
[357571307,1744181618422,-10810.3140876,0.00065753,120]
[357571308,1744181618446,-999.0,0.00065753,120]
[357571309,1744181618475,288.92036,0.00065,120]
[357571310,1744181623082,1006.427,0.00065753,30]
[357571311,1744181626622,151.0,0.00064,120]
[357571312,1744181626922,152.309273,0.00065,120]
[357571313,1744181641807,-155.115862,0.00064,120]
[357571314,1744181641833,-1000.0,0.00065753,120]
[357571315,1744181641860,-150.0,0.00065767,120]
[357571316,1744181641884,-150.0,0.0006593,120]
[357571317,1744181641910,-58057.938001,0.00065999,30]
[357571318,1744181641934,-219.3257408,0.00066,120]
[357571319,1744181641958,-300.0,0.00066,120]
[357571320,1744181641982,-173.86656902,0.00066,30]
[357571321,1744181642009,-2000000.0,0.00066,120]
[357571322,1744181642036,-939793.75382718,0.00066,120]
[357571323,1744181645478,-60206.24617282,0.00066,120]
[357571324,1744181645503,-151.0,0.00066,120]
[357571325,1744181645527,-151.0,0.00066,120]
[357571326,1744181645553,-499.943661,0.00066,120]
[357571327,1744181645578,-499.943661,0.00066,120]
[357571328,1744181645602,-150.0,0.00066093,120]
[357571329,1744181645627,-150.0,0.00066111,120]
[357571330,1744181645652,-500.0,0.00066164,120]
[357571331,1744181645677,-150.0,0.00066256,120]
[357571332,1744181645703,-173.56,0.00066311,120]
[357571333,1744181645728,-150.0,0.00066419,120]
[357571334,1744181645753,-150.0,0.00066581,120]
[357571335,1744181645778,-500.0,0.00066712,120]
[357571336,1744181645802,-150.0,0.00066744,120]
[357571337,1744181645826,-150.0,0.00066889,120]
[357571338,1744181645850,-150.0,0.00066907,120]
[357571339,1744181645875,-1000.0,0.00066999,120]
[357571340,1744181645900,-273.58587301,0.00067,120]
[357571341,1744181645927,-2000000.0,0.00067,120]
[357571342,1744181645953,-934844.72063217,0.00067,120]
[357571343,1744181650348,-151.0,0.00064,120]
[357571344,1744181650378,-65155.27936783,0.00067,120]
[357571345,1744181650405,-163.49,0.00067019,120]
[357571346,1744181650431,-150.0,0.0006707,120]
[357571347,1744181650462,-150.0,0.00067233,120]
[357571348,1744181650491,-500.0,0.0006726,120]
[357571349,1744181650519,-150.0,0.00067395,120]
[357571350,1744181650545,-313.15,0.00067426,120]
[357571351,1744181650572,-250.0,0.000675,120]
[357571352,1744181650600,-150.0,0.00067558,120]
[357571353,1744181650629,-150.0,0.00067667,120]
[357571354,1744181650656,-150.0,0.00067721,120]
[357571355,1744181650682,-200.0,0.00067808,120]
[357571356,1744181650710,-150.0,0.00067884,120]
[357571357,1744181650738,-151.0,0.00067899,120]
[357571358,1744181650767,-499.943661,0.00067899,120]
[357571359,1744181650794,-499.943661,0.00067899,120]
[357571360,1744181650820,-6000.000001,0.00068,120]
[357571361,1744181651124,-658.0,0.00068,120]
[357571362,1744181651160,-43168.0,0.00068,120]
[357571363,1744181651204,-358.58022891,0.00068,120]
[357571364,1744181651253,-2000000.0,0.00068,120]
[357571365,1744181651301,-880881.61308026,0.00068,120]
[357571366,1744181654787,-50000.0,0.00065,65]
[357571367,1744181654825,-151.0,0.00065,120]
[357571368,1744181654850,-151.0,0.00066,120]
[357571369,1744181654878,-1000000.0,0.00066,120]
[357571370,1744181654903,-151.0,0.00067899,120]
[357571371,1744181654931,-119118.38691974,0.00068,120]
[357571372,1744181654955,-230.84,0.00068,60]
[357571373,1744181654980,-150.0,0.00068047,120]
[357571374,1744181655006,-150.0,0.00068161,120]
[357571375,1744181655031,-150.0,0.00068209,120]
[357571376,1744181655057,-150.0,0.00068365,120]
[357571377,1744181655083,-150.0,0.00068372,120]
[357571378,1744181655108,-150.0,0.00068444,120]
[357571379,1744181655136,-1394.81810488,0.00068453,119]
[357571380,1744181655162,-500.0,0.00068493,120]
[357571381,1744181655191,-700.0,0.00068493,120]
[357571382,1744181655217,-700.0,0.00068493,120]
[357571383,1744181655242,-700.0,0.00068493,120]
[357571384,1744181655269,-700.0,0.00068493,120]
[357571385,1744181655295,-766.48687952,0.00068493,120]
[357571386,1744181655320,-1373.6,0.00068493,120]
[357571387,1744181655346,-1373.6,0.00068493,120]
[357571388,1744181655373,-1373.6,0.00068493,120]
[357571389,1744181655397,-1373.6,0.00068493,120]
[357571390,1744181655422,-1373.6,0.00068493,120]
[357571391,1744181655446,-1373.6,0.00068493,120]
[357571392,1744181655469,-1373.6,0.00068493,120]
[357571393,1744181655493,-1373.6,0.00068493,120]
[357571394,1744181655517,-1373.6,0.00068493,120]
[357571395,1744181655542,-1373.6,0.00068493,120]
[357571396,1744181655566,-1373.6,0.00068493,120]
[357571397,1744181655589,-1373.6,0.00068493,120]
[357571398,1744181655614,-1373.6,0.00068493,120]
[357571399,1744181655638,-1373.6,0.00068493,120]
[357571400,1744181655661,-1373.6,0.00068493,120]
[357571401,1744181655685,-1373.6,0.00068493,120]
[357571402,1744181655719,-1373.6,0.00068493,120]
[357571403,1744181655750,-1373.6,0.00068493,120]
[357571404,1744181655777,-1373.6,0.00068493,120]
[357571405,1744181655807,-1373.6,0.00068493,120]
[357571406,1744181655836,-1373.6,0.00068493,120]
[357571407,1744181655868,-1373.6,0.00068493,120]
[357571408,1744181655900,-1373.6,0.00068493,120]
[357571409,1744181655929,-1373.62141637,0.00068493,120]
[357571410,1744181655957,-999.0,0.00068493,120]
[357571411,1744181655985,-1789871.04667949,0.00068493,120]
[357571412,1744181659263,-159.380461,0.00067,120]
[357571413,1744181659292,-1210128.95332051,0.00068493,120]
[357571414,1744181659320,-1789711.66621849,0.00068493,120]
[357571415,1744181662891,-151.0,0.00067,120]
[357571416,1744181662917,-168.038263,0.00068,120]
[357571417,1744181662942,-1210288.33378151,0.00068493,120]
[357571418,1744181662967,-1789392.62795549,0.00068493,120]
[357571419,1744181665978,-1210607.37204451,0.00068493,120]
[357571420,1744181666003,-4000.0,0.00068493,60]
[357571421,1744181666043,50000.0,0.0006,60]
[357571422,1744181667778,1735392.62795549,0.00068493,120]
[357571423,1744181671130,-1000000.0,0.00066,120]
[357571424,1744181671155,-1264607.37204451,0.00068493,120]
[357571425,1744181671184,-735392.62795549,0.00068493,120]
[357571426,1744181674111,-500.0,0.00049999,120]
[357571427,1744181674136,-376.3426663,0.00049999,120]
[357571428,1744181674169,-2264607.37204451,0.00068493,120]
[357571429,1744181675653,734516.28528919,0.00068493,120]
[357571430,1744181685940,-151.0,0.00067,120]
[357571431,1744181685964,-151.0,0.00068,120]
[357571432,1744181685988,-2265483.71471081,0.00068493,120]
[357571433,1744181686011,-500.0,0.00068493,120]
[357571434,1744181689157,151.0,0.00067,120]
[357571435,1744181689423,151.0,0.00068,120]
[357571436,1744181695656,733412.28528919,0.00066,120]
[357571438,1744181791316,271.0,0.00043961,120]
[357571440,1744181830126,250.0,0.00019,2]
[357571441,1744181948099,176.17945622,0.00043961,60]
[357571442,1744181977448,1000.0,0.0003,30]
[357571443,1744182003271,1249.94,0.00044285,30]
[357571444,1744182003303,1096.98973864,0.00044285,120]
[357571445,1744182039321,150.0,0.00027,120]
[357571446,1744182126246,151.0,0.00044285,30]
[357571447,1744182126890,156.587,0.00044285,30]
[357571448,1744182127544,156.587,0.00044285,30]
[357571449,1744182136750,200.0,0.00044285,30]
[357571450,1744182137411,207.4,0.00044285,30]
[357571451,1744182138583,215.0738,0.00044285,30]
[357571452,1744182139568,223.0315306,0.00044285,30]
[357571453,1744182140387,231.28369723,0.00044285,30]
[357571454,1744182141028,239.84119403,0.00044285,30]
[357571455,1744182141652,248.71531821,0.00044285,30]
[357571456,1744182142321,248.71531821,0.00044285,30]
[357571458,1744182214677,1040.90025418,0.00044285,120]
[357571459,1744182249217,519.01,0.00044285,30]
[357571463,1744182330095,-300.0,0.00021,2]
[357571464,1744182330116,-250.0,0.000215,2]
[357571465,1744182330137,-250.0,0.00022772,2]
[357571466,1744182330158,-260.34672129,0.00023,2]
[357571467,1744182351093,-89.65327871,0.00023,2]
[357571468,1744182351113,-250.0,0.000231,2]
[357571469,1744182351133,-197.21448907,0.00024875,2]
[357571470,1744182398466,10000.0,0.00044136,30]
[357571471,1744182433113,-250.0,0.0002495,2]
[357571472,1744182433135,-400.0,0.00025,2]
[357571473,1744182433157,-250.0,0.0002545,2]
[357571474,1744182433177,-150.0,0.00025571,2]
[357571475,1744182433198,-160.0,0.00025571,2]
[357571476,1744182433219,-119.7328031,0.00025572,2]
[357571477,1744182439092,-361.57630849,0.0002535,2]
[357571478,1744182439119,-1311.04790927,0.00025572,2]
[357571480,1744182481094,176.99,0.00016712,2]
[357571519,1744182631570,-2097.575,0.00024967,2]
[357571521,1744182631580,-361.57630848,0.00025472,2]
[357571523,1744182631589,-160.34070726,0.00025472,2]
[357571524,1744182631599,-250.0,0.00025521,2]
[357571525,1744182631608,-522.981,0.00025572,2]
[357571527,1744182631617,-1434.93,0.00025572,2]
[357571529,1744182631626,-791.0,0.00025572,2]
[357571530,1744182631635,-544.0,0.00025572,2]
[357571532,1744182631644,-3287.668,0.00025572,2]
[357571534,1744182631653,-156.57,0.00026209,2]
[357571536,1744182631662,-1040.722614,0.00026715,2]
[357571538,1744182631671,-156.73,0.00026849,2]
[357571540,1744182631680,-450.0,0.00027,2]
[357571542,1744182631690,-150.99,0.00027,2]
[357571544,1744182631699,-250.0,0.0002739,2]
[357571546,1744182631709,-250.0,0.00028018,2]
[357571548,1744182631718,-2534.19,0.00028027,2]
[357571550,1744182631727,-506.33,0.00028027,2]
[357571552,1744182631737,-167.0,0.00028027,2]
[357571554,1744182631747,-334.079,0.00028572,2]
[357571556,1744182631756,-2027.51,0.00028572,2]
[357571558,1744182631766,-381.12,0.00028572,2]
[357571560,1744182631778,-500.0,0.00029,2]
[357571562,1744182631788,-2000.0,0.00029884,2]
[357571564,1744182631796,-500.0,0.00030521,2]
[357571566,1744182631806,-889.4,0.00031244,2]
[357571568,1744182631815,-6333.51151089,0.00031349,2]
[357571570,1744182631825,-436.94347255,0.00031358,2]
[357571572,1744182631835,-2000.0,0.00031359,5]
[357571575,1744182631844,-166.5,0.00031512,2]
[357571577,1744182631854,-150.0,0.000323,120]
[357571579,1744182631864,-1000.0,0.00032499,2]
[357571581,1744182631873,-157.91,0.00032555,2]
[357571583,1744182631883,-256.15,0.00032583,2]
[357571585,1744182631893,-155.97,0.00032594,2]
[357571587,1744182631903,-313.15,0.00032646,2]
[357571589,1744182631914,-1797.86,0.00032774,2]
[357571591,1744182631923,-1000.0,0.00032794,2]
[357571593,1744182631933,-150.0,0.00032818,2]
[357571595,1744182631943,-30198.8,0.00032826,2]
[357571597,1744182631952,-180.88,0.00032839,2]
[357571599,1744182631961,-256.73,0.00032942,4]
[357571601,1744182631970,-915.84,0.00032947,2]
[357571602,1744182631980,-23900.0,0.00033004,2]
[357571604,1744182631990,-718.23,0.00033011,2]
[357571606,1744182632000,-150.0,0.00033069,2]
[357571608,1744182632009,-844.50526877,0.00033069,2]
[357571610,1744182632019,-2315.39,0.00033087,2]
[357571612,1744182632030,-250.0,0.00033188,2]
[357571614,1744182632039,-810.95,0.00033205,2]
[357571616,1744182632049,-200.0,0.00033233,7]
[357571617,1744182632058,-200.0,0.00033283,2]
[357571619,1744182632067,-1681.0,0.00033303,2]
[357571621,1744182632077,-157.4,0.00033445,2]
[357571622,1744182632086,-157.4,0.00033454,2]
[357571624,1744182632095,-157.4,0.00033462,2]
[357571625,1744182632105,-157.4,0.00033471,2]
[357571626,1744182632114,-157.4,0.0003348,2]
[357571627,1744182632124,-157.4,0.00033489,2]
[357571628,1744182632133,-157.4,0.00033498,2]
[357571629,1744182632143,-157.4,0.00033506,2]
[357571630,1744182632152,-889.4,0.00033507,2]
[357571631,1744182632161,-157.4,0.00033515,2]
[357571632,1744182632170,-157.4,0.00033524,2]
[357571633,1744182632179,-157.4,0.00033533,2]
[357571634,1744182632188,-157.4,0.00033542,2]
[357571635,1744182632197,-157.4,0.0003355,2]
[357571636,1744182632206,-157.4,0.00033559,2]
[357571637,1744182632216,-157.4,0.00033568,2]
[357571638,1744182632225,-157.4,0.00033577,2]
[357571639,1744182632235,-157.4,0.00033586,2]
[357571640,1744182632245,-157.4,0.00033594,2]
[357571641,1744182632254,-157.4,0.00033603,2]
[357571642,1744182632263,-1554.5,0.00033607,2]
[357571643,1744182632271,-157.4,0.00033612,2]
[357571644,1744182632282,-168.05,0.00033766,2]
[357571645,1744182632291,-173.56,0.00033819,2]
[357571646,1744182632301,-166.5,0.00034113,2]
[357571647,1744182632311,-163.5,0.00035671,120]
[357571648,1744182632320,-889.4,0.00035771,2]
[357571649,1744182632329,-150.0,0.00035879,2]
[357571650,1744182632339,-734.30129225,0.00035879,2]
[357571651,1744182632348,-669.827,0.00036048,44]
[357571652,1744182632359,-152.0,0.00036495,3]
[357571653,1744182632368,-166.5,0.00036713,2]
[357571654,1744182632377,-1000.0,0.00036893,2]
[357571655,1744182632387,-10146.0,0.00037,2]
[357571656,1744182632397,-2000.0,0.00037288,5]
[357571657,1744182632406,-1336.0,0.000373,7]
[357571658,1744182632416,-150.0,0.000376,120]
[357571659,1744182632425,-156.73,0.00037863,2]
[357571660,1744182632434,-157.91,0.0003798,2]
[357571661,1744182632444,-889.4,0.00038035,2]
[357571662,1744182632454,-1437.6633,0.00038056,2]
[357571663,1744182632467,-5691.6793,0.00038146,2]
[357571664,1744182632477,-1252.6519,0.00038146,2]
[357571665,1744182632486,-174.47690302,0.00038146,2]
[357571666,1744182632495,-1000.0,0.00038156,2]
[357571667,1744182632506,-2880.0317,0.00038156,2]
[357571668,1744182632515,-766.8197,0.00038156,2]
[357571669,1744182632525,-189.0445,0.00038156,2]
[357571670,1744182632536,-15730.4298,0.00038156,2]
[357571671,1744182632547,-36603.5059,0.00038156,2]
[357571672,1744182632558,-1000.0,0.00038246,2]
[357571673,1744182632567,-338.0,0.00038254,5]
[357571674,1744182632576,-162.23741016,0.00038256,2]
[357571675,1744182632588,-61618.52004511,0.00038256,2]
[357571676,1744182632599,-223.0,0.00038256,2]
[357571677,1744182632611,-156.24784854,0.00038256,2]
[357571678,1744182632621,-1026.0,0.000383,7]
[357571679,1744182632632,-15659.9137636,0.00038336,3]
[357571680,1744182632642,-7829.95688181,0.00038346,3]